bitfinex/quotes_BTCUSD_20240826
["timestamp","ask_amount","ask_price","bid_price","bid_amount"]
[1724633834705,1.503317,64225.0,64224.0,0.0009075]
[1724633835111,1.319017,64225.0,64224.0,0.0009075]
[1724633835531,1.007612,64225.0,64224.0,0.0009075]
[1724633836342,1.00848321,64225.0,64224.0,0.0009075]
[1724633837890,1.31988821,64225.0,64224.0,0.0009075]
[1724633838933,1.47606622,64225.0,64224.0,0.0009075]
[1724633839550,1.66507884,64225.0,64224.0,0.0009075]
[1724633840747,1.97648384,64225.0,64224.0,0.0009075]
[1724633840942,1.66507884,64225.0,64224.0,0.0009075]
[1724633843439,1.50890083,64225.0,64224.0,0.0009075]
[1724633843638,0.46779083,64225.0,64224.0,0.1984075]
[1724633844043,0.15657321,64225.0,64224.0,0.1984075]
[1724633844244,0.00087121,64225.0,64224.0,0.1984075]
[1724633844644,0.15657321,64225.0,64224.0,0.1984075]
[1724633844846,0.46797821,64225.0,64224.0,0.1984075]
[1724633845055,0.46797821,64225.0,64224.0,0.0009075]
[1724633847987,0.15657321,64225.0,64224.0,0.0009075]
[1724633848192,0.00087121,64225.0,64224.0,0.0009075]
[1724633848405,0.00087121,64225.0,64224.0,0.58270973]
[1724633848597,0.00087121,64225.0,64224.0,0.67596781]
[1724633849447,0.00087121,64225.0,64224.0,0.93078774]
[1724633850025,0.00087121,64225.0,64224.0,1.04743206]
[1724633850336,0.00087121,64225.0,64224.0,1.04742987]
[1724633850741,0.00087121,64225.0,64224.0,0.93078774]
[1724633851506,0.00087121,64225.0,64224.0,1.04735857]
[1724633851910,0.00087121,64225.0,64224.0,0.89118056]
[1724633852134,0.00087121,64225.0,64224.0,0.77457807]
[1724633852393,0.00087121,64225.0,64224.0,0.4293075]
[1724633852751,0.00087121,64225.0,64224.0,0.49927227]
[1724633852902,0.00087121,64225.0,64224.0,0.84456328]
[1724633853252,0.00087121,64225.0,64224.0,0.84455998]
[1724633853610,0.00087121,64225.0,64224.0,0.49927227]
[1724633853846,0.00087121,64225.0,64224.0,0.4293075]
[1724633853972,0.00087121,64225.0,64224.0,0.49927227]
[1724633854179,0.00087121,64225.0,64224.0,0.4293075]
[1724633854790,0.00087121,64225.0,64224.0,0.77459676]
[1724633855206,0.00087121,64225.0,64224.0,0.84454364]
[1724633855426,0.00087121,64225.0,64224.0,0.77459676]
[1724633855625,0.00087121,64225.0,64224.0,0.86788133]
[1724633855827,0.00087121,64225.0,64224.0,0.93077477]
[1724633856182,0.00087121,64225.0,64224.0,1.04737726]
[1724633856710,0.00087121,64225.0,64224.0,1.20308226]
[1724633856970,0.00087121,64225.0,64224.0,1.04737726]
[1724633858983,0.00087121,64225.0,64224.0,0.93077477]
[1724633859614,0.00087121,64225.0,64224.0,1.02399859]
[1724633859818,0.00087121,64225.0,64224.0,0.63209934]
[1724633860147,0.00087121,64225.0,64224.0,0.58548551]
[1724633860775,0.00087121,64225.0,64224.0,0.4293075]
[1724633866398,0.00169721,64225.0,64224.0,0.4293075]
[1724633869216,0.00169721,64225.0,64224.0,0.49922812]
[1724633869420,0.00169721,64225.0,64224.0,0.04753196]
[1724633869618,0.00169721,64225.0,64224.0,0.0009075]
[1724633869858,0.00169721,64225.0,64224.0,0.04753281]
[1724633871188,1.22940921,64225.0,64224.0,0.0009075]
[1724633872335,1.69699222,64225.0,64224.0,0.0009075]
[1724633872482,0.40719921,64225.0,64224.0,0.0009075]
[1724633872682,0.00169721,64225.0,64224.0,0.0009075]
[1724633873700,0.15739921,64225.0,64224.0,0.0009075]
[1724633874760,0.15892125,64225.0,64224.0,0.0009075]
[1724633874916,0.47032625,64225.0,64224.0,0.0009075]
[1724633875950,0.78173125,64225.0,64224.0,0.0009075]
[1724633879698,0.47032625,64225.0,64224.0,0.0009075]
[1724633879918,0.15739921,64225.0,64224.0,0.0009075]
[1724633880245,0.46880421,64225.0,64224.0,0.0009075]
[1724633886385,0.00169721,64225.0,64224.0,0.0009075]
[1724633886563,0.15739921,64225.0,64224.0,0.0009075]
[1724633888163,0.15721181,64225.0,64224.0,0.0009075]
[1724633888519,0.46861681,64225.0,64224.0,0.0009075]
[1724633888934,0.15721181,64225.0,64224.0,0.0009075]
[1724633889721,0.46861681,64225.0,64224.0,0.0009075]
[1724633890056,0.15721181,64225.0,64224.0,0.0009075]
[1724633890268,0.00150981,64225.0,64224.0,0.0009075]
[1724633890462,0.00150981,64225.0,64224.0,0.04753936]
[1724633891823,0.00150981,64225.0,64224.0,0.07085529]
[1724633892199,0.00150981,64225.0,64224.0,0.41616453]
[1724633892412,0.00150981,64225.0,64224.0,0.82375847]
[1724633892562,0.00150981,64225.0,64224.0,1.70161975]
[1724633892768,0.00150981,64225.0,64224.0,1.53010534]
[1724633894540,0.00150981,64225.0,64224.0,1.39020975]
[1724633894697,0.00150981,64225.0,64224.0,1.87365965]
[1724633894902,0.00150981,64225.0,64224.0,1.39020975]
[1724633895255,0.00150981,64225.0,64224.0,1.87365965]
[1724633895473,0.00150981,64225.0,64224.0,1.39020975]
[1724633896115,0.00150981,64225.0,64224.0,0.92309475]
[1724633896330,0.00150981,64225.0,64224.0,0.34621674]
[1724633897161,0.00150981,64225.0,64224.0,0.46288648]
[1724633899363,0.00150981,64225.0,64224.0,0.34621674]
[1724633899561,0.00150981,64225.0,64224.0,0.46288483]
[1724633900841,0.00150981,64225.0,64224.0,0.34621674]
[1724633902151,0.00150981,64225.0,64224.0,0.50239475]
[1724633902349,0.00150981,64225.0,64224.0,0.88379975]
[1724633902811,0.00150981,64225.0,64224.0,0.88375842]
[1724633904310,0.00150981,64225.0,64224.0,0.65805842]
[1724633904746,0.00150981,64225.0,64224.0,0.50235342]
[1724633904973,0.00150981,64225.0,64224.0,0.61901685]
[1724633905367,0.00150981,64225.0,64224.0,0.50235342]
[1724633908842,0.00150981,64225.0,64224.0,0.15708551]
[1724633908998,0.00150981,64225.0,64224.0,0.50235789]
[1724633909203,0.00150981,64225.0,64224.0,0.65806289]
[1724633909407,0.00150981,64225.0,64224.0,0.50235789]
[1724633915087,0.00150981,64225.0,64224.0,0.50235601]
[1724633917317,0.00150981,64225.0,64224.0,0.51260214]
[1724633918418,0.00150981,64225.0,64224.0,0.97971214]
[1724633922553,0.00150981,64225.0,64224.0,1.20901214]
[1724633923967,0.00150981,64225.0,64224.0,1.36471714]
[1724633926030,0.00150981,64225.0,64224.0,0.97971214]
[1724633927520,0.24400981,64225.0,64224.0,0.97971214]
[1724633928550,0.24400981,64225.0,64224.0,0.97971694]
[1724633932707,0.00150981,64225.0,64224.0,1.11977242]
[1724633932909,0.00150981,64225.0,64224.0,1.35107242]
[1724633933241,0.00150981,64225.0,64224.0,1.83450611]
[1724633933526,0.23580981,64225.0,64224.0,1.11981204]
[1724633933696,0.23580981,64225.0,64224.0,0.97970707]
[1724633934666,0.23580981,64225.0,64224.0,0.97971805]
[1724633935601,0.23580981,64225.0,64224.0,1.46310503]
[1724633936394,0.00150981,64225.0,64224.0,1.60324415]
[1724633938457,0.00150981,64225.0,64224.0,1.4631058]
[1724633938869,0.00150981,64225.0,64224.0,1.47479771]
[1724633941746,0.00150981,64225.0,64224.0,1.47479305]
[1724633941956,0.00150981,64225.0,64224.0,1.31861504]
[1724633944312,0.00150981,64225.0,64224.0,1.30692313]
[1724633944513,0.00150981,64225.0,64224.0,1.31861506]
[1724633948020,0.00132241,64225.0,64224.0,1.31861506]
[1724633948666,0.00132241,64225.0,64224.0,1.31861488]
[1724633949975,0.42892241,64225.0,64224.0,1.31861488]
[1724633950166,0.42892241,64225.0,64224.0,0.82353842]
[1724633954179,0.24132241,64225.0,64224.0,0.82353842]
[1724633955979,0.32722501,64225.0,64224.0,0.82353842]
[1724633956212,0.48292701,64225.0,64224.0,0.82353842]
[1724633956614,0.48292701,64225.0,64224.0,0.82355903]
[1724633956812,0.48292701,64225.0,64224.0,0.8133129]
[1724633957021,0.48292701,64225.0,64224.0,0.82353558]
[1724633957022,0.67872701,64225.0,64224.0,0.82353558]
[1724633958606,0.67872701,64225.0,64224.0,0.91699721]
[1724633958607,0.99013201,64225.0,64224.0,0.91699721]
[1724633959031,0.99013201,64225.0,64224.0,0.89363333]
[1724633959441,0.67872701,64225.0,64224.0,0.91699721]
[1724633959610,0.67872701,64225.0,64224.0,0.91360697]
[1724633959828,0.67872701,64225.0,64224.0,0.82014534]
[1724633960136,0.99013201,64225.0,64224.0,0.91359693]
[1724633960819,0.99013201,64225.0,64224.0,0.91701315]
[1724633961156,1.30153701,64225.0,64224.0,0.91359693]
[1724633961361,1.30153701,64225.0,64224.0,0.47484994]
[1724633962956,0.99013201,64225.0,64224.0,0.47484994]
[1724633963158,0.99013201,64225.0,64224.0,0.52157276]
[1724633963698,1.30153701,64225.0,64224.0,0.52157276]
[1724633964103,1.30153701,64225.0,64224.0,0.4680175]
[1724633964438,1.30153701,64225.0,64224.0,0.47484994]
[1724633964644,0.99013201,64225.0,64224.0,0.47484994]
[1724633964865,0.67872701,64225.0,64224.0,0.52157276]
[1724633965267,0.99013201,64225.0,64224.0,0.52157276]
[1724633966092,0.99013201,64225.0,64224.0,0.47484994]
[1724633971554,0.43712241,64225.0,64224.0,0.47484994]
[1724633971760,0.43712241,64225.0,64224.0,0.52154239]
[1724633971761,0.67872701,64225.0,64224.0,0.52154239]
[1724633972021,0.67872701,64225.0,64224.0,0.54488861]
[1724633972275,0.67872701,64225.0,64224.0,0.89019111]
[1724633972523,0.67872701,64225.0,64224.0,0.54488861]
[1724633972778,0.67872701,64225.0,64224.0,0.89019149]
[1724633972987,0.67872701,64225.0,64224.0,0.54488861]
[1724633973241,0.67872701,64225.0,64224.0,0.47484994]
[1724633973490,1.30153701,64225.0,64224.0,0.47484994]
[1724633973733,0.99013201,64225.0,64224.0,0.47484994]
[1724633977990,1.30153701,64225.0,64224.0,0.47484994]
[1724633978730,1.30153701,64225.0,64224.0,0.4680175]
[1724633979205,1.30153701,64225.0,64224.0,0.47486755]
[1724633979745,1.61294201,64225.0,64224.0,0.47486755]
[1724633981994,1.61294201,64225.0,64224.0,0.4680175]
[1724633983408,1.76912002,64225.0,64224.0,0.4680175]
[1724633984190,1.68321742,64225.0,64224.0,0.4680175]
[1724633984451,1.76912002,64225.0,64224.0,0.4680175]
[1724633985906,1.30153701,64225.0,64224.0,0.4680175]
[1724633989882,1.45771502,64225.0,64224.0,0.4680175]
[1724633990120,1.76912002,64225.0,64224.0,0.4680175]
[1724633995873,1.76893262,64225.0,64224.0,0.4680175]
[1724634000463,1.68303002,64225.0,64224.0,0.4680175]
[1724634000675,1.76893262,64225.0,64224.0,0.4680175]
[1724634002062,1.21544701,64225.0,64224.0,0.4680175]
[1724634002276,1.30134961,64225.0,64224.0,0.4680175]
[1724634002479,1.61275461,64225.0,64224.0,0.4680175]
[1724634002721,1.45752762,64225.0,64224.0,0.4680175]
[1724634002926,1.45752762,64225.0,64210.0,0.09336802]
[1724634002927,0.467238,64207.0,64203.0,0.04668401]
[1724634003126,0.467238,64207.0,64200.0,0.04668401]
[1724634003127,1.2716326,64207.0,64200.0,0.04668401]
[1724634003335,1.2716326,64207.0,64199.0,0.0009075]
[1724634003965,1.0910326,64207.0,64201.0,0.239]
[1724634004194,1.00513,64207.0,64201.0,0.239]
[1724634004827,1.00513,64207.0,64199.0,0.04759151]
[1724634005258,1.00513,64207.0,64199.0,0.0009075]
[1724634006430,1.00513,64207.0,64206.0,0.1940075]
[1724634006431,0.467238,64207.0,64206.0,0.1940075]
[1724634006888,0.311457,64215.0,64206.0,0.1940075]
[1724634006889,0.558845,64217.0,64207.0,0.2328]
[1724634007042,0.311463,64213.0,64207.0,0.2328]
[1724634007243,0.155735,64212.0,64207.0,0.2328]
[1724634007440,0.155736,64211.0,64207.0,0.2328]
[1724634007666,0.311451,64216.0,64207.0,0.2328]
[1724634007827,0.311443,64218.0,64208.0,0.1901]
[1724634007828,0.155731,64213.0,64208.0,0.1901]
[1724634011793,0.00086997,64209.0,64208.0,0.1901]
[1724634012754,0.00086997,64209.0,64208.0,0.23675064]
[1724634013512,0.00086997,64209.0,64208.0,0.1901]
[1724634013721,0.00086997,64209.0,64208.0,0.23675064]
[1724634014277,0.00086997,64209.0,64208.0,0.4182]
[1724634014476,0.00086997,64209.0,64208.0,0.76357948]
[1724634016418,0.00086997,64209.0,64208.0,1.07550049]
[1724634016880,0.00086997,64209.0,64208.0,1.93842641]
[1724634017067,0.00086997,64209.0,64208.0,1.79847449]
[1724634017445,0.00086997,64209.0,64208.0,2.11096149]
[1724634017669,0.18091412,64231.0,64208.0,2.11096149]
[1724634017670,0.18091412,64231.0,64220.0,0.2422]
[1724634017872,0.000826,64231.0,64224.0,0.2422]
[1724634018045,0.000826,64231.0,64224.0,0.58757948]
[1724634018277,0.000826,64231.0,64224.0,0.59288978]
[1724634018720,0.156514,64231.0,64224.0,0.59288978]
[1724634019366,0.156514,64231.0,64224.0,0.66284616]
[1724634020938,0.155694,64229.0,64224.0,0.29414202]
[1724634021122,0.155694,64229.0,64224.0,0.05194202]
[1724634021272,0.155694,64229.0,64224.0,0.0053103]
[1724634021478,0.156515,64231.0,64224.0,0.0053103]
[1724634021698,0.15569,64230.0,64224.0,0.0053103]
[1724634023369,0.155693,64229.0,64224.0,0.0053103]
[1724634023845,0.2364,64227.0,64224.0,0.0053103]
[1724634024546,0.2364,64227.0,64222.0,0.04663172]
[1724634024746,0.2364,64227.0,64223.0,0.15617801]
[1724634024947,0.2364,64227.0,64223.0,0.16146618]
[1724634025172,0.311388,64229.0,64223.0,0.16146618]
[1724634025374,0.000826,64231.0,64223.0,0.16146618]
[1724634025582,0.000826,64231.0,64224.0,0.4769162]
[1724634025783,0.000826,64231.0,64224.0,0.43558657]
[1724634025985,0.155696,64228.0,64224.0,0.43558657]
[1724634026212,0.155697,64227.0,64224.0,0.43558657]
[1724634027416,0.155697,64227.0,64224.0,0.00528657]
[1724634027814,0.155701,64226.0,64224.0,0.00699863]
[1724634028037,0.155701,64226.0,64221.0,0.04660836]
[1724634028268,0.155701,64226.0,64222.0,0.16318148]
[1724634030561,0.155701,64226.0,64224.0,0.2291]
[1724634031016,0.311387,64229.0,64224.0,0.2291]
[1724634031017,0.311387,64229.0,64224.0,0.23609887]
[1724634031654,0.155698,64227.0,64224.0,0.23609887]
[1724634031876,0.155698,64227.0,64224.0,0.00699887]
[1724634031877,0.1559658,64225.0,64224.0,0.00699887]
[1724634032177,0.0002638,64225.0,64224.0,0.00699887]
[1724634032207,0.0002638,64225.0,64222.0,0.15617801]
[1724634032406,0.0002638,64225.0,64223.0,0.00699944]
[1724634036026,0.0002638,64225.0,64224.0,0.58617801]
[1724634036274,0.0002638,64225.0,64224.0,0.59317564]
[1724634047486,0.0002638,64225.0,64224.0,0.59317564]
[1724634049254,0.0002638,64225.0,64224.0,0.35437564]
[1724634049459,0.0002638,64225.0,64224.0,0.40089183]
[1724634050291,0.0002638,64225.0,64224.0,0.35437564]
[1724634050669,0.0002638,64225.0,64224.0,0.40092154]
[1724634051495,0.0002638,64225.0,64224.0,0.42414993]
[1724634052173,0.0002638,64225.0,64224.0,1.58324347]
[1724634052388,0.0002638,64225.0,64224.0,1.89465347]
[1724634052592,0.0002638,64225.0,64224.0,2.13161705]
[1724634053350,0.0002638,64225.0,64224.0,2.03420206]
[1724634054299,0.0002638,64225.0,64224.0,1.94831498]
[1724634055322,0.0002638,64225.0,64224.0,1.80876639]
[1724634056301,0.0002638,64225.0,64224.0,1.54804521]
[1724634057311,0.0002638,64225.0,64224.0,1.45490584]
[1724634057735,0.0002638,64225.0,64224.0,1.54803282]
[1724634058356,0.0002638,64225.0,64224.0,1.23664382]
[1724634058554,0.0002638,64225.0,64224.0,1.54805382]
[1724634059235,0.0002638,64225.0,64224.0,1.54801489]
[1724634060374,0.0002638,64225.0,64224.0,1.45491459]
[1724634060606,0.0002638,64225.0,64224.0,1.54805202]
[1724634060810,0.4344638,64225.0,64224.0,0.69455138]
[1724634061016,0.45083741,64225.0,64224.0,0.60141395]
[1724634061951,0.45083741,64225.0,64224.0,0.69455138]
[1724634062587,0.45083741,64225.0,64224.0,0.6946025]
[1724634063780,0.45083741,64225.0,64224.0,0.60142765]
[1724634064009,0.01663741,64225.0,64224.0,0.75713265]
[1724634064185,0.01663741,64225.0,64224.0,0.75804125]
[1724634064387,0.01663741,64225.0,64224.0,0.65804125]
[1724634064583,0.01663741,64225.0,64224.0,1.38555125]
[1724634065934,0.01663741,64225.0,64224.0,1.69696125]
[1724634066143,0.01663741,64225.0,64224.0,1.81442981]
[1724634066350,0.01663741,64225.0,64224.0,1.69796125]
[1724634067413,0.01663741,64225.0,64224.0,1.69793886]
[1724634068074,0.01663741,64225.0,64224.0,1.72093886]
[1724634068791,0.01663741,64225.0,64224.0,2.0399033]
[1724634070282,0.01663741,64225.0,64224.0,2.1399033]
[1724634072327,0.01663741,64225.0,64224.0,2.13988395]
[1724634072727,0.01663741,64225.0,64224.0,2.34633725]
[1724634073181,0.01663741,64225.0,64224.0,2.13988395]
[1724634073573,0.000826,64231.0,64230.0,0.77845]
[1724634073792,0.000826,64231.0,64230.0,1.27982367]
[1724634074398,0.000826,64231.0,64230.0,0.96844367]
[1724634074748,0.000826,64231.0,64230.0,1.27982367]
[1724634076905,0.000826,64231.0,64230.0,0.96844367]
[1724634077112,0.000826,64231.0,64230.0,1.43551367]
[1724634080020,0.000826,64231.0,64230.0,1.74689367]
[1724634080235,0.000826,64231.0,64230.0,1.93239367]
[1724634081453,0.000826,64231.0,64230.0,1.93339367]
[1724634082002,0.000826,64231.0,64230.0,2.03339367]
[1724634082332,0.000826,64231.0,64230.0,2.03339428]
[1724634082544,0.000826,64231.0,64230.0,2.17323007]
[1724634082972,0.000826,64231.0,64230.0,2.03339428]
[1724634083374,0.000826,64231.0,64230.0,2.36777428]
[1724634083978,0.000826,64231.0,64230.0,2.18227428]
[1724634084093,0.252326,64231.0,64230.0,2.18227428]
[1724634085600,0.000826,64231.0,64230.0,2.18227428]
[1724634087070,0.000826,64231.0,64230.0,2.18227552]
[1724634087868,0.000826,64231.0,64230.0,1.53551552]
[1724634088072,0.431626,64231.0,64230.0,0.92885739]
[1724634088292,0.431626,64231.0,64230.0,0.90555312]
[1724634089178,0.89869,64231.0,64230.0,0.46707]
[1724634089513,1.210066,64231.0,64230.0,0.46707]
[1724634090329,0.89869,64231.0,64230.0,0.46707]
[1724634090529,0.587314,64231.0,64230.0,0.46707]
[1724634090859,0.431626,64231.0,64230.0,0.46707]
[1724634091631,0.431626,64231.0,64230.0,0.53705085]
[1724634091841,0.431626,64231.0,64230.0,0.88230922]
[1724634092437,0.431626,64231.0,64230.0,0.81232837]
[1724634095159,0.431626,64231.0,64230.0,0.5370616]
[1724634095536,0.431626,64231.0,64230.0,0.88231938]
[1724634095736,0.4314386,64231.0,64230.0,0.51373455]
[1724634095937,0.5871266,64231.0,64230.0,0.51373455]
[1724634096145,0.4314386,64231.0,64230.0,0.51373455]
[1724634096747,0.5871266,64231.0,64230.0,0.51373455]
[1724634097152,0.4314386,64231.0,64230.0,0.51373455]
[1724634097430,0.4314386,64231.0,64230.0,0.46707]
[1724634097642,0.4314386,64231.0,64230.0,0.5370616]
[1724634098181,0.4314386,64231.0,64230.0,0.88232035]
[1724634099009,0.4314386,64231.0,64230.0,0.5370616]
[1724634100093,0.4314386,64231.0,64230.0,0.88231739]
[1724634100421,0.4314386,64231.0,64230.0,0.5370616]
[1724634101400,0.4314386,64231.0,64230.0,0.53705996]
[1724634101606,0.4314386,64231.0,64230.0,0.88231527]
[1724634104478,0.4314386,64231.0,64230.0,0.53705996]
[1724634105803,0.4314386,64231.0,64230.0,0.88231422]
[1724634106027,0.4314386,64231.0,64230.0,0.53661786]
[1724634106185,0.4314386,64231.0,64230.0,0.53661049]
[1724634106507,0.4314386,64231.0,64230.0,0.4666279]
[1724634108406,0.4314386,64231.0,64230.0,0.51328413]
[1724634111254,0.4314386,64231.0,64230.0,0.51327996]
[1724634112442,0.4314386,64231.0,64230.0,0.4666279]
[1724634113022,0.4314386,64231.0,64230.0,0.51327996]
[1724634115642,0.5871266,64231.0,64230.0,0.51327996]
[1724634116095,0.5871266,64231.0,64230.0,0.4666279]
[1724634116855,1.2098786,64231.0,64230.0,0.4666279]
[1724634121731,1.5212546,64231.0,64230.0,0.4666279]
[1724634122125,1.5212046,64231.0,64230.0,0.4666279]
[1724634122532,1.2098286,64231.0,64230.0,0.4666279]
[1724634122749,1.2098286,64231.0,64230.0,0.4675365]
[1724634123389,1.5212046,64231.0,64230.0,0.4675365]
[1724634125986,1.2098286,64231.0,64230.0,0.4675365]
[1724634126920,1.5212046,64231.0,64230.0,0.4675365]
[1724634128101,1.67738261,64231.0,64230.0,0.4675365]
[1724634128446,1.67738261,64231.0,64230.0,0.0009086]
[1724634128447,1.98875861,64231.0,64230.0,0.0009086]
[1724634130064,1.99644072,64231.0,64230.0,0.0009086]
[1724634131147,1.68506472,64231.0,64230.0,0.0009086]
[1724634131566,1.99644072,64231.0,64230.0,0.0009086]
[1724634133114,1.68506472,64231.0,64230.0,0.0009086]
[1724634133817,1.5212046,64231.0,64230.0,0.0009086]
[1724634137616,1.67738261,64231.0,64230.0,0.0009086]
[1724634144789,1.67719523,64231.0,64230.0,0.0009086]
[1724634150076,1.76311668,64231.0,64230.0,0.0009086]
[1724634157167,1.77070108,64231.0,64230.0,0.0009086]
[1724634158035,1.67719523,64231.0,64230.0,0.0009086]
[1724634158254,1.76311668,64231.0,64230.0,0.0009086]
[1724634162859,1.67719523,64231.0,64230.0,0.0009086]
[1724634163067,1.76311668,64231.0,64230.0,0.0009086]
[1724634172711,1.09021722,64231.0,64230.0,0.0009086]
[1724634172916,0.00040122,64231.0,64230.0,0.4239086]
[1724634173344,0.155676,64236.0,64231.0,0.2276]
[1724634173345,0.155678,64236.0,64231.0,0.2276]
[1724634173547,0.155678,64235.0,64233.0,0.04671815]
[1724634174099,0.155678,64235.0,64231.0,0.29767722]
[1724634174100,0.155678,64235.0,64232.0,0.04671815]
[1724634175162,0.155678,64235.0,64231.0,0.2276]
[1724634175163,0.155678,64235.0,64231.0,0.27431815]
[1724634177587,0.155678,64235.0,64231.0,0.27428267]
[1724634177790,0.155681,64234.0,64231.0,0.27428267]
[1724634178461,0.23962204,64236.0,64230.0,0.0009086]
[1724634178786,0.467064,64231.0,64230.0,0.0009086]
[1724634179375,0.77844,64231.0,64230.0,0.0009086]
[1724634179717,1.525416,64231.0,64230.0,0.0009086]
[1724634180145,1.525416,64231.0,64230.0,0.0059086]
[1724634182600,1.526242,64231.0,64230.0,0.0059086]
[1724634185864,1.526242,64231.0,64230.0,0.0009086]
[1724634191421,1.336742,64231.0,64230.0,0.0009086]
[1724634191623,1.090642,64231.0,64230.0,0.0009086]
[1724634192104,0.46789,64231.0,64230.0,0.0009086]
[1724634192509,0.156514,64231.0,64230.0,0.2273086]
[1724634193420,0.000826,64231.0,64230.0,0.2273086]
[1724634193838,0.000826,64231.0,64230.0,0.2293086]
[1724634194219,0.000826,64231.0,64230.0,0.2273086]
[1724634194530,0.000826,64231.0,64230.0,0.2303086]
[1724634195141,0.000826,64231.0,64230.0,0.4257086]
[1724634195826,0.000826,64231.0,64230.0,0.47237968]
[1724634196252,0.000826,64231.0,64230.0,0.46937968]
[1724634196458,0.000826,64231.0,64230.0,0.78124769]
[1724634196657,0.000826,64231.0,64230.0,0.92714316]
[1724634196857,0.000826,64231.0,64230.0,1.01746699]
[1724634197065,0.000826,64231.0,64230.0,1.04082087]
[1724634197258,0.000826,64231.0,64230.0,1.04682087]
[1724634197454,0.000826,64231.0,64230.0,1.04082087]
[1724634197678,0.000826,64231.0,64230.0,0.92414316]
[1724634197889,0.000826,64231.0,64230.0,0.93414316]
[1724634198203,0.000826,64231.0,64230.0,1.02744589]
[1724634198824,0.000826,64231.0,64230.0,1.00411232]
[1724634199362,0.000826,64231.0,64230.0,0.64885577]
[1724634199726,0.000826,64231.0,64230.0,1.00710261]
[1724634199930,0.000826,64231.0,64230.0,0.93713345]
[1724634200174,0.000826,64231.0,64230.0,1.007094]
[1724634200397,0.000826,64231.0,64230.0,0.93713345]
[1724634200589,0.000826,64231.0,64230.0,1.00708748]
[1724634202186,0.156514,64231.0,64230.0,0.0139086]
[1724634202712,1.090642,64231.0,64230.0,0.0139086]
[1724634202918,1.517642,64231.0,64230.0,0.0139086]
[1724634203562,1.98500863,64231.0,64230.0,0.0139086]
[1724634203764,1.0899,64226.0,64225.0,0.0009086]
[1724634203968,2.19919808,64226.0,64225.0,0.0009086]
[1724634204211,1.42041207,64210.0,64209.0,0.0009086]
[1724634204416,2.19954408,64210.0,64209.0,0.0009086]
[1724634204619,0.78237508,64210.0,64199.0,0.0009075]
[1724634204815,1.18913507,64200.0,64199.0,0.0009075]
[1724634205027,1.42053507,64200.0,64199.0,0.0009075]
[1724634205434,1.73206107,64200.0,64199.0,0.0009075]
[1724634206259,1.88823908,64200.0,64199.0,0.0009075]
[1724634207127,1.89923908,64200.0,64199.0,0.0019075]
[1724634208475,1.528341,64200.0,64199.0,0.0019075]
[1724634210787,1.74306107,64200.0,64199.0,0.0019075]
[1724634211787,1.74267185,64200.0,64199.0,0.0019075]
[1724634214149,1.89884986,64200.0,64199.0,0.0019075]
[1724634215438,2.36650754,64200.0,64199.0,0.0019075]
[1724634215658,2.37447586,64200.0,64199.0,0.0019075]
[1724634215864,2.21037586,64200.0,64199.0,0.0019075]
[1724634216258,2.19937586,64200.0,64199.0,0.0009075]
[1724634216577,2.21037586,64200.0,64199.0,0.0019075]
[1724634217220,2.2181638,64200.0,64199.0,0.0019075]
[1724634218155,2.2189898,64200.0,64199.0,0.0019075]
[1724634218903,2.2079898,64200.0,64199.0,0.0009075]
[1724634219309,2.2219898,64200.0,64199.0,0.0009075]
[1724634227222,2.3219898,64200.0,64199.0,0.0009075]
[1724634232228,0.779032,64182.0,64181.0,0.46876099]
[1724634232404,1.30536507,64182.0,64181.0,0.46876099]
[1724634232595,0.77907,64179.0,64178.0,0.0009075]
[1724634233760,1.090698,64179.0,64178.0,0.0009075]
[1724634235107,1.091698,64179.0,64178.0,0.0069075]
[1724634235365,1.091698,64179.0,64178.0,0.0009075]
[1724634235366,1.090698,64179.0,64178.0,0.0009075]
[1724634235806,1.090698,64179.0,64178.0,0.0039075]
[1724634236855,1.334798,64179.0,64178.0,0.0039075]
[1724634238100,1.090698,64179.0,64178.0,0.0039075]
[1724634241393,1.525398,64179.0,64178.0,0.0039075]
[1724634242042,2.09320401,64179.0,64178.0,0.0039075]
[1724634242246,2.09320401,64179.0,64177.0,0.009064]
[1724634242247,1.516115,64178.0,64177.0,0.009064]
[1724634242417,2.08392601,64178.0,64177.0,0.009064]
[1724634243578,2.08392601,64178.0,64166.0,0.009075]
[1724634243579,1.518901,64167.0,64166.0,0.009075]
[1724634243805,1.73362107,64167.0,64166.0,0.009075]
[1724634248282,1.88979908,64167.0,64166.0,0.009075]
[1724634248961,2.209327,64167.0,64166.0,0.009075]
[1724634249410,2.210327,64167.0,64166.0,0.009075]
[1724634250720,2.67814468,64167.0,64166.0,0.009075]
[1724634250925,2.67814468,64167.0,64160.0,0.009086]
[1724634250926,1.1012046,64161.0,64160.0,0.009086]
[1724634251130,1.35738261,64161.0,64160.0,0.009086]
[1724634251346,2.29252761,64161.0,64160.0,0.009086]
[1724634252419,2.29352761,64161.0,64160.0,0.009086]
[1724634252623,2.29252761,64161.0,64160.0,0.009086]
[1724634252863,2.29252761,64161.0,64159.0,0.009075]
[1724634253073,0.155877,64153.0,64151.0,0.0004]
[1724634253274,1.56938308,64153.0,64151.0,0.0004]
[1724634253479,2.19289108,64153.0,64151.0,0.0004]
[1724634254502,2.29289108,64153.0,64151.0,0.0004]
[1724634255922,1.98813708,64153.0,64151.0,0.0004]
[1724634257627,1.99573686,64153.0,64151.0,0.0004]
[1724634258242,1.99573686,64153.0,64144.0,0.009086]
[1724634258243,1.12380907,64145.0,64144.0,0.009086]
[1724634258444,1.90557308,64145.0,64144.0,0.009086]
[1724634258650,2.31736608,64145.0,64144.0,0.009086]
[1724634258782,2.62915908,64145.0,64144.0,0.009086]
[1724634259900,2.63915908,64145.0,64144.0,0.009086]
[1724634260115,1.403289,64135.0,64134.0,0.009086]
[1724634260316,1.77418708,64135.0,64134.0,0.009086]
[1724634260529,2.12018708,64135.0,64134.0,0.009086]
[1724634262335,2.1276919,64135.0,64134.0,0.009086]
[1724634262665,2.1366919,64135.0,64134.0,0.009086]
[1724634263516,2.1276919,64135.0,64134.0,0.009086]
[1724634263916,2.1416919,64135.0,64134.0,0.009086]
[1724634268716,0.793605,64135.0,64134.0,0.234886]
[1724634269484,0.481763,64135.0,64134.0,0.234886]
[1724634269648,0.779605,64135.0,64134.0,0.234886]
[1724634270026,0.791605,64135.0,64134.0,0.234886]
[1724634270227,0.779605,64135.0,64134.0,0.234886]
[1724634270632,0.787605,64135.0,64134.0,0.234886]
[1724634272042,0.779605,64135.0,64134.0,0.234886]
[1724634272216,0.781605,64135.0,64134.0,0.234886]
[1724634275135,0.781605,64135.0,64134.0,0.009086]
[1724634281738,1.89554508,64135.0,64134.0,0.009086]
[1724634286019,2.20738708,64135.0,64134.0,0.009086]
[1724634288539,2.30738708,64135.0,64134.0,0.009086]
[1724634289168,1.99554508,64135.0,64134.0,0.009086]